[Event "Titled Tuesday Blitz December 20 Early 2022"]
[White "Canche Cab, Marco Alexei"]
[Black "Tologon tegin, Semetei"]
[WhiteFideId "5116139"]
[BlackFideId "13800574"]
[WhiteElo "2004"]
[BlackElo "2372"]
[Result "0-1"]
[Round "06"]
[TimeControl "180+2"]
[Date "2022.12.20"]
[WhiteClock "0:00:01"]
[BlackClock "0:00:07"]

1. e4 {[%clk 0:03:00]}  e5 {[%clk 0:02:53]} 2. Nf3 {[%clk 0:03:00]}  Nc6 {[%clk 0:02:53]} 3. d4 {[%clk 0:02:53]}  exd4 {[%clk 0:02:53]} 4. Nxd4 {[%clk 0:02:54]}  Qf6 {[%clk 0:02:53]} 5. Nb3 {[%clk 0:02:47]}  Bd6 {[%clk 0:02:47]} 6. Nc3 {[%clk 0:02:44]}  Nge7 {[%clk 0:02:44]} 7. g3 {[%clk 0:02:34]}  a6 {[%clk 0:02:31]} 8. f4 {[%clk 0:02:27]}  Bb4 {[%clk 0:02:30]} 9. Bd2 {[%clk 0:02:24]}  Qe6 {[%clk 0:02:20]} 10. Qf3 {[%clk 0:02:15]}  d5 {[%clk 0:02:18]} 11. O-O-O {[%clk 0:02:03]}  dxe4 {[%clk 0:02:11]} 12. Nxe4 {[%clk 0:01:59]}  Bxd2+ {[%clk 0:02:11]} 13. Rxd2 {[%clk 0:01:58]}  O-O {[%clk 0:02:10]} 14. Bg2 {[%clk 0:01:49]}  Qg6 {[%clk 0:01:54]} 15. Re1 {[%clk 0:01:31]}  Bg4 {[%clk 0:01:34]} 16. Qf2 {[%clk 0:01:23]}  Rad8 {[%clk 0:01:34]} 17. h3 {[%clk 0:01:14]}  Rxd2 {[%clk 0:01:27]} 18. Nbxd2 {[%clk 0:01:03]}  Bc8 {[%clk 0:01:18]} 19. Nf3 {[%clk 0:00:55]}  h6 {[%clk 0:00:54]} 20. Nh4 {[%clk 0:00:45]}  Qe6 {[%clk 0:00:54]} 21. Nc3 {[%clk 0:00:39]}  Qf6 {[%clk 0:00:49]} 22. Nf3 {[%clk 0:00:38]}  Nf5 {[%clk 0:00:41]} 23. Nd5 {[%clk 0:00:21]}  Qd6 {[%clk 0:00:41]} 24. Ne5 {[%clk 0:00:22]}  Nxe5 {[%clk 0:00:39]} 25. fxe5 {[%clk 0:00:22]}  Qd8 {[%clk 0:00:31]} 26. g4 {[%clk 0:00:15]}  Ne7 {[%clk 0:00:27]} 27. Nf4 {[%clk 0:00:12]}  c6 {[%clk 0:00:21]} 28. Qe3 {[%clk 0:00:12]}  Qa5 {[%clk 0:00:20]} 29. a3 {[%clk 0:00:11]}  Be6 {[%clk 0:00:20]} 30. Be4 {[%clk 0:00:06]}  Nd5 {[%clk 0:00:19]} 31. Bxd5 {[%clk 0:00:04]}  Bxd5 {[%clk 0:00:18]} 32. Qd2 {[%clk 0:00:04]}  Qc5 {[%clk 0:00:17]} 33. Nxd5 {[%clk 0:00:03]}  cxd5 {[%clk 0:00:17]} 34. Kb1 {[%clk 0:00:03]}  Rd8 {[%clk 0:00:17]} 35. e6 {[%clk 0:00:03]}  fxe6 {[%clk 0:00:17]} 36. Rxe6 {[%clk 0:00:04]}  Qg1+ {[%clk 0:00:16]} 37. Ka2 {[%clk 0:00:04]}  Qf1 {[%clk 0:00:17]} 38. Qe3 {[%clk 0:00:03]}  Qc4+ {[%clk 0:00:15]} 39. Kb1 {[%clk 0:00:03]}  Rf8 {[%clk 0:00:15]} 40. Re8 {[%clk 0:00:02]}  Qf1+ {[%clk 0:00:15]} 41. Ka2 {[%clk 0:00:02]}  Qf7 {[%clk 0:00:16]} 42. Rxf8+ {[%clk 0:00:01]}  Kxf8 {[%clk 0:00:17]} 43. Qd4 {[%clk 0:00:02]}  Qe6 {[%clk 0:00:16]} 44. c3 {[%clk 0:00:02]}  Kf7 {[%clk 0:00:17]} 45. Qf4+ {[%clk 0:00:02]}  Kg6 {[%clk 0:00:16]} 46. Qd4 {[%clk 0:00:02]}  Qc6 {[%clk 0:00:16]} 47. Qd3+ {[%clk 0:00:02]}  Kf7 {[%clk 0:00:15]} 48. Qf5+ {[%clk 0:00:02]}  Kg8 {[%clk 0:00:15]} 49. Qe5 {[%clk 0:00:02]}  Qc4+ {[%clk 0:00:15]} 50. Ka1 {[%clk 0:00:02]}  Qf1+ {[%clk 0:00:15]} 51. Ka2 {[%clk 0:00:03]}  Qf7 {[%clk 0:00:15]} 52. Kb1 {[%clk 0:00:02]}  Qd7 {[%clk 0:00:15]} 53. Ka1 {[%clk 0:00:02]}  Kh8 {[%clk 0:00:15]} 54. g5 {[%clk 0:00:02]}  hxg5 {[%clk 0:00:13]} 55. Qxg5 {[%clk 0:00:03]}  a5 {[%clk 0:00:11]} 56. h4 {[%clk 0:00:03]}  b5 {[%clk 0:00:11]} 57. h5 {[%clk 0:00:04]}  Qd6 {[%clk 0:00:09]} 58. Qf5 {[%clk 0:00:03]}  b4 {[%clk 0:00:07]} 59. axb4 {[%clk 0:00:03]}  axb4 {[%clk 0:00:06]} 60. cxb4 {[%clk 0:00:03]}  Qa6+ {[%clk 0:00:06]} 61. Kb1 {[%clk 0:00:03]}  Qc4 {[%clk 0:00:05]} 62. Qf8+ {[%clk 0:00:02]}  Kh7 {[%clk 0:00:06]} 63. Qf5+ {[%clk 0:00:03]}  Kg8 {[%clk 0:00:06]} 64. Qe6+ {[%clk 0:00:03]}  Kf8 {[%clk 0:00:06]} 65. Qf5+ {[%clk 0:00:04]}  Ke7 {[%clk 0:00:07]} 66. Qe5+ {[%clk 0:00:04]}  Kf7 {[%clk 0:00:07]} 67. Qf5+ {[%clk 0:00:05]}  Ke8 {[%clk 0:00:08]} 68. Qg6+ {[%clk 0:00:04]}  Kf8 {[%clk 0:00:08]} 69. h6 {[%clk 0:00:02]}  Qf1+ {[%clk 0:00:08]} 70. Ka2 {[%clk 0:00:02]}  Qc4+ {[%clk 0:00:08]} 71. Kb1 {[%clk 0:00:01]}  Qf1+ {[%clk 0:00:07]} 72. Ka2 {[%clk 0:00:01]}  Qa6+ {[%clk 0:00:07]} 73. Kb3 {[%clk 0:00:01]}  Qxg6 {[%clk 0:00:07]} 0-1


[Site "https://www.chess.com"]

[Event "Titled Tuesday Blitz December 20 Early 2022"]
[White "ChadBiryani"]
[Black "Rapy, Francois"]
[BlackFideId "26041324"]
[WhiteElo "2454"]
[BlackElo "1642"]
[Result "1-0"]
[Round "06"]
[TimeControl "180+2"]
[Date "2022.12.20"]
[WhiteClock "0:00:09"]
[BlackClock "0:00:02"]

1. d4 {[%clk 0:03:00]}  Nf6 {[%clk 0:02:57]} 2. Bf4 {[%clk 0:03:00]}  e6 {[%clk 0:02:57]} 3. e3 {[%clk 0:03:00]}  d5 {[%clk 0:02:57]} 4. Nf3 {[%clk 0:03:00]}  Bd6 {[%clk 0:02:58]} 5. Ne5 {[%clk 0:03:00]}  O-O {[%clk 0:02:56]} 6. g4 {[%clk 0:02:56]}  c5 {[%clk 0:02:42]} 7. c3 {[%clk 0:02:56]}  Qc7 {[%clk 0:02:40]} 8. Nd2 {[%clk 0:02:54]}  Nfd7 {[%clk 0:02:33]} 9. Nxd7 {[%clk 0:01:49]}  Nxd7 {[%clk 0:02:26]} 10. Bxd6 {[%clk 0:01:46]}  Qxd6 {[%clk 0:02:27]} 11. Bg2 {[%clk 0:01:44]}  e5 {[%clk 0:02:19]} 12. O-O {[%clk 0:01:40]}  f5 {[%clk 0:01:37]} 13. gxf5 {[%clk 0:01:26]}  exd4 {[%clk 0:01:08]} 14. cxd4 {[%clk 0:01:19]}  cxd4 {[%clk 0:01:09]} 15. Nb3 {[%clk 0:01:15]}  Rxf5 {[%clk 0:00:53]} 16. Nxd4 {[%clk 0:01:13]}  Rg5 {[%clk 0:00:46]} 17. f4 {[%clk 0:01:00]}  Rg6 {[%clk 0:00:32]} 18. Nb5 {[%clk 0:00:55]}  Qc5 {[%clk 0:00:21]} 19. Nd4 {[%clk 0:00:49]}  Nf6 {[%clk 0:00:17]} 20. Rc1 {[%clk 0:00:48]}  Qd6 {[%clk 0:00:16]} 21. Kh1 {[%clk 0:00:47]}  Rh6 {[%clk 0:00:15]} 22. Qb3 {[%clk 0:00:37]}  Ng4 {[%clk 0:00:12]} 23. Qxd5+ {[%clk 0:00:36]}  Qxd5 {[%clk 0:00:11]} 24. Bxd5+ {[%clk 0:00:36]}  Kf8 {[%clk 0:00:10]} 25. Rc3 {[%clk 0:00:21]}  Nxh2 {[%clk 0:00:09]} 26. Rfc1 {[%clk 0:00:16]}  Ng4+ {[%clk 0:00:09]} 27. Kg1 {[%clk 0:00:14]}  Bd7 {[%clk 0:00:09]} 28. Rc7 {[%clk 0:00:13]}  Be8 {[%clk 0:00:07]} 29. Ne6+ {[%clk 0:00:12]}  Kg8 {[%clk 0:00:06]} 30. Rc8 {[%clk 0:00:10]}  Rxc8 {[%clk 0:00:03]} 31. Rxc8 {[%clk 0:00:11]}  Nxe3 {[%clk 0:00:03]} 32. Rxe8+ {[%clk 0:00:09]}  Kf7 {[%clk 0:00:03]} 33. Rf8+ {[%clk 0:00:08]}  Ke7 {[%clk 0:00:03]} 34. Rg8 {[%clk 0:00:07]}  Nxd5 {[%clk 0:00:02]} 35. Nxg7 {[%clk 0:00:08]}  Rg6+ {[%clk 0:00:02]} 36. Kf2 {[%clk 0:00:09]}  Kf7 {[%clk 0:00:02]} 37. Rd8 {[%clk 0:00:09]} 1-0


[Site "https://www.chess.com"]

[Event "Titled Tuesday Blitz December 20 Early 2022"]
[White "Chesca, Alexandru"]
[Black "Volkov, Nikolay Nik."]
[WhiteFideId "1214438"]
[BlackFideId "4176626"]
[WhiteElo "1917"]
[BlackElo "2123"]
[Result "1-0"]
[Round "06"]
[TimeControl "180+2"]
[Date "2022.12.20"]
[WhiteClock "0:01:13"]
[BlackClock "0:00:13"]

1. Nf3 {[%clk 0:03:00]}  d6 {[%clk 0:02:58]} 2. d4 {[%clk 0:02:58]}  g6 {[%clk 0:02:57]} 3. e4 {[%clk 0:02:53]}  Nf6 {[%clk 0:02:55]} 4. Nc3 {[%clk 0:02:50]}  Bg7 {[%clk 0:02:51]} 5. Be2 {[%clk 0:02:50]}  O-O {[%clk 0:02:49]} 6. O-O {[%clk 0:02:50]}  a6 {[%clk 0:02:48]} 7. a4 {[%clk 0:02:49]}  Nc6 {[%clk 0:02:38]} 8. h3 {[%clk 0:02:48]}  e5 {[%clk 0:02:37]} 9. Be3 {[%clk 0:02:45]}  exd4 {[%clk 0:02:37]} 10. Nxd4 {[%clk 0:02:45]}  Bd7 {[%clk 0:02:36]} 11. Qd2 {[%clk 0:02:14]}  Re8 {[%clk 0:02:35]} 12. Bd3 {[%clk 0:02:15]}  Nxd4 {[%clk 0:02:25]} 13. Bxd4 {[%clk 0:02:14]}  c5 {[%clk 0:02:25]} 14. Be3 {[%clk 0:02:02]}  Bc6 {[%clk 0:02:20]} 15. Bg5 {[%clk 0:02:02]}  Qd7 {[%clk 0:02:13]} 16. Rfe1 {[%clk 0:02:00]}  Re6 {[%clk 0:02:00]} 17. Bc4 {[%clk 0:01:49]}  Nxe4 {[%clk 0:01:55]} 18. Bxe6 {[%clk 0:01:44]}  Bxc3 {[%clk 0:01:29]} 19. Bxd7 {[%clk 0:01:34]}  Bxd2 {[%clk 0:01:21]} 20. Bxc6 {[%clk 0:01:33]}  Bxe1 {[%clk 0:01:20]} 21. Bxe4 {[%clk 0:01:32]}  Ba5 {[%clk 0:01:14]} 22. Rd1 {[%clk 0:01:30]}  Bc7 {[%clk 0:01:10]} 23. b3 {[%clk 0:01:24]}  Rb8 {[%clk 0:01:07]} 24. Bf6 {[%clk 0:01:23]}  b5 {[%clk 0:00:56]} 25. axb5 {[%clk 0:01:23]}  axb5 {[%clk 0:00:57]} 26. Bd5 {[%clk 0:01:23]}  Re8 {[%clk 0:00:43]} 27. Kf1 {[%clk 0:01:18]}  Ba5 {[%clk 0:00:40]} 28. g3 {[%clk 0:01:15]}  h5 {[%clk 0:00:25]} 29. Ra1 {[%clk 0:01:14]}  Bd2 {[%clk 0:00:13]} 30. Ra7 {[%clk 0:01:13]} 1-0


[Site "https://www.chess.com"]

[Event "Titled Tuesday Blitz December 20 Early 2022"]
[White "ChessShop"]
[Black "BENO_CHESS"]
[WhiteElo "2502"]
[BlackElo "2706"]
[Result "0-1"]
[Round "06"]
[TimeControl "180+2"]
[Date "2022.12.20"]
[WhiteClock "0:00:01"]
[BlackClock "0:00:55"]

1. d4 {[%clk 0:03:00]}  Nf6 {[%clk 0:03:00]} 2. Nf3 {[%clk 0:03:01]}  g6 {[%clk 0:03:00]} 3. Bg5 {[%clk 0:03:01]}  Bg7 {[%clk 0:03:00]} 4. Nbd2 {[%clk 0:03:02]}  O-O {[%clk 0:03:00]} 5. e4 {[%clk 0:03:02]}  d6 {[%clk 0:03:01]} 6. c3 {[%clk 0:03:02]}  Nbd7 {[%clk 0:03:00]} 7. Bc4 {[%clk 0:03:02]}  c6 {[%clk 0:02:58]} 8. a4 {[%clk 0:03:01]}  d5 {[%clk 0:02:49]} 9. exd5 {[%clk 0:03:01]}  cxd5 {[%clk 0:02:49]} 10. Bd3 {[%clk 0:03:01]}  b6 {[%clk 0:02:45]} 11. O-O {[%clk 0:03:00]}  Bb7 {[%clk 0:02:45]} 12. Re1 {[%clk 0:03:00]}  Re8 {[%clk 0:02:45]} 13. h3 {[%clk 0:03:00]}  Qc7 {[%clk 0:02:45]} 14. Bh4 {[%clk 0:02:50]}  e6 {[%clk 0:02:41]} 15. Bg3 {[%clk 0:02:48]}  Qd8 {[%clk 0:02:41]} 16. Ne5 {[%clk 0:02:48]}  Nh5 {[%clk 0:02:39]} 17. Bh2 {[%clk 0:02:48]}  Nxe5 {[%clk 0:02:35]} 18. Bxe5 {[%clk 0:02:48]}  Bxe5 {[%clk 0:02:35]} 19. Rxe5 {[%clk 0:02:48]}  Ng7 {[%clk 0:02:30]} 20. Nf3 {[%clk 0:02:42]}  f6 {[%clk 0:02:29]} 21. Re2 {[%clk 0:02:25]}  Qd6 {[%clk 0:02:29]} 22. Qe1 {[%clk 0:02:16]}  Re7 {[%clk 0:02:28]} 23. a5 {[%clk 0:02:11]}  Rae8 {[%clk 0:02:26]} 24. axb6 {[%clk 0:02:07]}  axb6 {[%clk 0:02:27]} 25. Bb5 {[%clk 0:01:49]}  Bc6 {[%clk 0:02:26]} 26. Bxc6 {[%clk 0:01:48]}  Qxc6 {[%clk 0:02:27]} 27. Ra6 {[%clk 0:01:37]}  Qb5 {[%clk 0:02:20]} 28. Ra1 {[%clk 0:01:28]}  Kf7 {[%clk 0:02:18]} 29. g4 {[%clk 0:01:24]}  h6 {[%clk 0:02:11]} 30. h4 {[%clk 0:01:23]}  g5 {[%clk 0:02:11]} 31. hxg5 {[%clk 0:01:22]}  hxg5 {[%clk 0:02:12]} 32. Kg2 {[%clk 0:01:13]}  Rh8 {[%clk 0:02:10]} 33. Qd2 {[%clk 0:01:10]}  Qd7 {[%clk 0:02:02]} 34. Nh2 {[%clk 0:01:06]}  Rh4 {[%clk 0:01:57]} 35. f3 {[%clk 0:01:05]}  e5 {[%clk 0:01:48]} 36. dxe5 {[%clk 0:01:03]}  Ne6 {[%clk 0:01:48]} 37. Kh1 {[%clk 0:00:29]}  Nf4 {[%clk 0:01:45]} 38. e6+ {[%clk 0:00:29]}  Rxe6 {[%clk 0:01:42]} 39. Rxe6 {[%clk 0:00:28]}  Qxe6 {[%clk 0:01:41]} 40. Re1 {[%clk 0:00:28]}  Qd6 {[%clk 0:01:33]} 41. Qc2 {[%clk 0:00:18]}  Kg7 {[%clk 0:01:30]} 42. b4 {[%clk 0:00:16]}  Ng6 {[%clk 0:01:19]} 43. Ra1 {[%clk 0:00:15]}  Qg3 {[%clk 0:01:12]} 44. Qg2 {[%clk 0:00:12]}  Qe5 {[%clk 0:01:12]} 45. Ra7+ {[%clk 0:00:11]}  Kh6 {[%clk 0:01:13]} 46. Qd2 {[%clk 0:00:09]}  Qg3 {[%clk 0:01:09]} 47. Qg2 {[%clk 0:00:09]}  Qe1+ {[%clk 0:01:05]} 48. Qg1 {[%clk 0:00:09]}  Qxc3 {[%clk 0:01:05]} 49. Qf1 {[%clk 0:00:06]}  Qb2 {[%clk 0:01:01]} 50. Qg2 {[%clk 0:00:06]}  Qb1+ {[%clk 0:01:00]} 51. Qg1 {[%clk 0:00:06]}  Qxb4 {[%clk 0:01:00]} 52. Rb7 {[%clk 0:00:05]}  Ne5 {[%clk 0:00:58]} 53. Rxb6 {[%clk 0:00:05]}  Qf4 {[%clk 0:00:56]} 54. Rxf6+ {[%clk 0:00:01]}  Qxf6 {[%clk 0:00:55]} 0-1


[Site "https://www.chess.com"]

[Event "Titled Tuesday Blitz December 20 Early 2022"]
[White "ChessicallyInclined"]
[Black "Vesper, Horst"]
[BlackFideId "24677159"]
[WhiteElo "2693"]
[BlackElo "2028"]
[Result "0-1"]
[Round "06"]
[TimeControl "180+2"]
[Date "2022.12.20"]
[WhiteClock "0:00:06"]
[BlackClock "0:00:07"]

1. a3 {[%clk 0:02:58]}  Nf6 {[%clk 0:02:57]} 2. c4 {[%clk 0:02:57]}  e5 {[%clk 0:02:51]} 3. Nc3 {[%clk 0:02:55]}  d5 {[%clk 0:02:42]} 4. cxd5 {[%clk 0:02:54]}  Nxd5 {[%clk 0:02:42]} 5. g3 {[%clk 0:02:54]}  Nc6 {[%clk 0:02:37]} 6. Bg2 {[%clk 0:02:53]}  Be6 {[%clk 0:02:38]} 7. d3 {[%clk 0:02:45]}  Be7 {[%clk 0:02:38]} 8. Nf3 {[%clk 0:02:45]}  O-O {[%clk 0:02:36]} 9. Bd2 {[%clk 0:02:42]}  f5 {[%clk 0:02:31]} 10. h4 {[%clk 0:02:41]}  Nxc3 {[%clk 0:02:24]} 11. Bxc3 {[%clk 0:02:41]}  Bf6 {[%clk 0:02:22]} 12. Qc2 {[%clk 0:02:22]}  Qd7 {[%clk 0:02:13]} 13. Ng5 {[%clk 0:02:09]}  Bxg5 {[%clk 0:02:09]} 14. hxg5 {[%clk 0:02:08]}  Bd5 {[%clk 0:02:06]} 15. e4 {[%clk 0:01:38]}  fxe4 {[%clk 0:02:05]} 16. dxe4 {[%clk 0:01:38]}  Be6 {[%clk 0:01:59]} 17. Rd1 {[%clk 0:01:32]}  Qf7 {[%clk 0:01:59]} 18. O-O {[%clk 0:01:28]}  Bb3 {[%clk 0:01:57]} 19. Qe2 {[%clk 0:01:24]}  Bxd1 {[%clk 0:01:56]} 20. Rxd1 {[%clk 0:01:25]}  Rad8 {[%clk 0:01:53]} 21. Rd5 {[%clk 0:01:20]}  Nd4 {[%clk 0:01:47]} 22. Qe3 {[%clk 0:00:56]}  Nf5 {[%clk 0:01:14]} 23. Qc5 {[%clk 0:00:30]}  b6 {[%clk 0:01:03]} 24. Qc4 {[%clk 0:00:21]}  Ne7 {[%clk 0:00:57]} 25. Qxc7 {[%clk 0:00:13]}  Nxd5 {[%clk 0:00:57]} 26. Qxf7+ {[%clk 0:00:13]}  Rxf7 {[%clk 0:00:46]} 27. exd5 {[%clk 0:00:14]}  Rf5 {[%clk 0:00:45]} 28. Bd2 {[%clk 0:00:11]}  Rf7 {[%clk 0:00:31]} 29. Bc3 {[%clk 0:00:09]}  Rdf8 {[%clk 0:00:26]} 30. Bxe5 {[%clk 0:00:07]}  Rxf2 {[%clk 0:00:24]} 31. Bc3 {[%clk 0:00:04]}  Rc2 {[%clk 0:00:20]} 32. Be4 {[%clk 0:00:03]}  Rc1+ {[%clk 0:00:20]} 33. Kg2 {[%clk 0:00:03]}  Rd8 {[%clk 0:00:19]} 34. Be5 {[%clk 0:00:03]}  Kf7 {[%clk 0:00:18]} 35. Bf4 {[%clk 0:00:03]}  Re1 {[%clk 0:00:17]} 36. Bf3 {[%clk 0:00:03]}  Ke7 {[%clk 0:00:15]} 37. Kf2 {[%clk 0:00:03]}  Rb1 {[%clk 0:00:14]} 38. Be5 {[%clk 0:00:04]}  Kf7 {[%clk 0:00:11]} 39. Bc3 {[%clk 0:00:03]}  b5 {[%clk 0:00:08]} 40. Be4 {[%clk 0:00:03]}  Rd1 {[%clk 0:00:07]} 41. Ke2 {[%clk 0:00:03]}  Rg1 {[%clk 0:00:07]} 42. Kf2 {[%clk 0:00:04]}  Ra1 {[%clk 0:00:07]} 43. Bf3 {[%clk 0:00:03]}  Re8 {[%clk 0:00:06]} 44. d6 {[%clk 0:00:03]}  Rd8 {[%clk 0:00:06]} 45. Bd5+ {[%clk 0:00:03]}  Kg6 {[%clk 0:00:07]} 46. Be4+ {[%clk 0:00:03]}  Kxg5 {[%clk 0:00:07]} 47. Bd2+ {[%clk 0:00:03]}  Kg4 {[%clk 0:00:07]} 48. Bf4 {[%clk 0:00:04]}  g5 {[%clk 0:00:07]} 49. Be5 {[%clk 0:00:04]}  Kh3 {[%clk 0:00:05]} 50. Bf5+ {[%clk 0:00:04]}  g4 {[%clk 0:00:05]} 51. d7 {[%clk 0:00:05]}  Rd1 {[%clk 0:00:05]} 52. Bf6 {[%clk 0:00:05]}  R8xd7 {[%clk 0:00:05]} 53. Bxd7 {[%clk 0:00:05]}  Rxd7 {[%clk 0:00:06]} 54. Bh4 {[%clk 0:00:05]}  Rf7+ {[%clk 0:00:06]} 55. Ke3 {[%clk 0:00:06]}  Rf3+ {[%clk 0:00:06]} 56. Ke4 {[%clk 0:00:06]}  Rxg3 {[%clk 0:00:07]} 0-1


[Site "https://www.chess.com"]

[Event "Titled Tuesday Blitz December 20 Early 2022"]
[White "CristobalBlanco"]
[Black "supertfc"]
[WhiteElo "2476"]
[BlackElo "2268"]
[Result "1-0"]
[Round "06"]
[TimeControl "180+2"]
[Date "2022.12.20"]
[WhiteClock "0:00:18"]
[BlackClock "0:00:03"]

1. e4 {[%clk 0:03:00]}  e5 {[%clk 0:02:57]} 2. Nf3 {[%clk 0:03:00]}  Nc6 {[%clk 0:02:56]} 3. Nc3 {[%clk 0:03:00]}  Nf6 {[%clk 0:02:55]} 4. g3 {[%clk 0:03:00]}  Bc5 {[%clk 0:02:51]} 5. Bg2 {[%clk 0:03:00]}  d6 {[%clk 0:02:51]} 6. d3 {[%clk 0:02:58]}  O-O {[%clk 0:02:43]} 7. O-O {[%clk 0:02:52]}  Bg4 {[%clk 0:02:28]} 8. h3 {[%clk 0:02:51]}  Bxf3 {[%clk 0:02:26]} 9. Qxf3 {[%clk 0:02:51]}  Nd4 {[%clk 0:02:26]} 10. Qd1 {[%clk 0:02:51]}  c6 {[%clk 0:02:20]} 11. Na4 {[%clk 0:02:49]}  Bb6 {[%clk 0:02:18]} 12. Nxb6 {[%clk 0:02:48]}  axb6 {[%clk 0:02:18]} 13. c3 {[%clk 0:02:43]}  Ne6 {[%clk 0:02:14]} 14. f4 {[%clk 0:02:43]}  c5 {[%clk 0:01:57]} 15. f5 {[%clk 0:02:36]}  Nc7 {[%clk 0:01:52]} 16. c4 {[%clk 0:02:37]}  Nd7 {[%clk 0:01:50]} 17. Qh5 {[%clk 0:02:28]}  f6 {[%clk 0:01:48]} 18. g4 {[%clk 0:02:26]}  Qe8 {[%clk 0:01:45]} 19. Qh4 {[%clk 0:02:26]}  h6 {[%clk 0:01:36]} 20. Bf3 {[%clk 0:02:23]}  Na6 {[%clk 0:01:28]} 21. a3 {[%clk 0:01:32]}  Nb4 {[%clk 0:01:27]} 22. Be2 {[%clk 0:01:32]}  Nc2 {[%clk 0:01:26]} 23. Rb1 {[%clk 0:01:32]}  Nd4 {[%clk 0:01:25]} 24. Bd1 {[%clk 0:01:33]}  Nb8 {[%clk 0:01:22]} 25. Qf2 {[%clk 0:01:28]}  Nbc6 {[%clk 0:01:06]} 26. h4 {[%clk 0:01:26]}  Kf7 {[%clk 0:01:03]} 27. g5 {[%clk 0:01:24]}  Ke7 {[%clk 0:00:52]} 28. b4 {[%clk 0:01:17]}  hxg5 {[%clk 0:00:42]} 29. hxg5 {[%clk 0:01:17]}  Ra7 {[%clk 0:00:21]} 30. Kg2 {[%clk 0:01:08]}  Rh8 {[%clk 0:00:17]} 31. Rh1 {[%clk 0:00:54]}  Kd7 {[%clk 0:00:15]} 32. Rxh8 {[%clk 0:00:43]}  Qxh8 {[%clk 0:00:16]} 33. bxc5 {[%clk 0:00:40]}  bxc5 {[%clk 0:00:16]} 34. Rb6 {[%clk 0:00:35]}  Kc7 {[%clk 0:00:13]} 35. Rb1 {[%clk 0:00:33]}  fxg5 {[%clk 0:00:08]} 36. Bxg5 {[%clk 0:00:31]}  Rxa3 {[%clk 0:00:06]} 37. Rxb7+ {[%clk 0:00:28]}  Kxb7 {[%clk 0:00:05]} 38. Qb2+ {[%clk 0:00:28]}  Nb4 {[%clk 0:00:05]} 39. Qxa3 {[%clk 0:00:26]}  Qa8 {[%clk 0:00:02]} 40. Qxa8+ {[%clk 0:00:20]}  Kxa8 {[%clk 0:00:03]} 41. Be7 {[%clk 0:00:20]}  Nxd3 {[%clk 0:00:03]} 42. Bxd6 {[%clk 0:00:19]}  Kb7 {[%clk 0:00:03]} 43. Bf8 {[%clk 0:00:18]} 1-0


[Site "https://www.chess.com"]

[Event "Titled Tuesday Blitz December 20 Early 2022"]
[White "D`Arruda, Ricardo D."]
[Black "Etoilegeniale"]
[WhiteFideId "100692"]
[WhiteElo "2271"]
[BlackElo "2593"]
[Result "1/2-1/2"]
[Round "06"]
[TimeControl "180+2"]
[Date "2022.12.20"]
[WhiteClock "0:00:40"]
[BlackClock "0:00:26"]

1. Nf3 {[%clk 0:02:50]}  Nf6 {[%clk 0:02:58]} 2. d4 {[%clk 0:02:49]}  d5 {[%clk 0:02:57]} 3. g3 {[%clk 0:02:41]}  e6 {[%clk 0:02:56]} 4. Bg2 {[%clk 0:02:41]}  c5 {[%clk 0:02:56]} 5. O-O {[%clk 0:02:41]}  Nc6 {[%clk 0:02:56]} 6. c4 {[%clk 0:02:41]}  Be7 {[%clk 0:02:55]} 7. Nc3 {[%clk 0:02:40]}  dxc4 {[%clk 0:02:53]} 8. Qa4 {[%clk 0:02:31]}  O-O {[%clk 0:02:43]} 9. dxc5 {[%clk 0:02:31]}  Bxc5 {[%clk 0:02:37]} 10. Qxc4 {[%clk 0:02:31]}  Be7 {[%clk 0:02:36]} 11. Rd1 {[%clk 0:02:27]}  Qb6 {[%clk 0:02:29]} 12. Qb5 {[%clk 0:02:24]}  Qxb5 {[%clk 0:02:24]} 13. Nxb5 {[%clk 0:02:25]}  a6 {[%clk 0:02:24]} 14. Nbd4 {[%clk 0:02:19]}  Bd7 {[%clk 0:02:19]} 15. Nxc6 {[%clk 0:02:14]}  Bxc6 {[%clk 0:02:18]} 16. Bd2 {[%clk 0:02:08]}  Rfd8 {[%clk 0:02:11]} 17. Ba5 {[%clk 0:02:05]}  Rxd1+ {[%clk 0:02:10]} 18. Rxd1 {[%clk 0:02:06]}  Rc8 {[%clk 0:02:10]} 19. Rc1 {[%clk 0:01:59]}  Re8 {[%clk 0:01:48]} 20. Ne5 {[%clk 0:01:53]}  Bxg2 {[%clk 0:01:47]} 21. Kxg2 {[%clk 0:01:54]}  Bd6 {[%clk 0:01:46]} 22. Nd3 {[%clk 0:01:43]}  h6 {[%clk 0:01:04]} 23. Bc7 {[%clk 0:01:42]}  Bf8 {[%clk 0:01:04]} 24. Be5 {[%clk 0:01:39]}  Nd7 {[%clk 0:01:03]} 25. Bd4 {[%clk 0:01:15]}  e5 {[%clk 0:01:00]} 26. Be3 {[%clk 0:01:13]}  Bd6 {[%clk 0:00:58]} 27. Nc5 {[%clk 0:01:07]}  Nxc5 {[%clk 0:00:42]} 28. Bxc5 {[%clk 0:01:08]}  Rc8 {[%clk 0:00:42]} 29. Be3 {[%clk 0:01:08]}  Rxc1 {[%clk 0:00:41]} 30. Bxc1 {[%clk 0:01:09]}  f6 {[%clk 0:00:38]} 31. e4 {[%clk 0:01:03]}  Kf7 {[%clk 0:00:38]} 32. Kf3 {[%clk 0:01:03]}  Ke6 {[%clk 0:00:38]} 33. Ke2 {[%clk 0:01:01]}  h5 {[%clk 0:00:38]} 34. h3 {[%clk 0:01:00]}  g6 {[%clk 0:00:38]} 35. g4 {[%clk 0:01:00]}  hxg4 {[%clk 0:00:33]} 36. hxg4 {[%clk 0:01:00]}  f5 {[%clk 0:00:33]} 37. f3 {[%clk 0:01:00]}  Bc5 {[%clk 0:00:32]} 38. Kd3 {[%clk 0:00:58]}  Bd4 {[%clk 0:00:32]} 39. b3 {[%clk 0:00:57]}  b5 {[%clk 0:00:29]} 40. Bh6 {[%clk 0:00:53]}  Bb2 {[%clk 0:00:27]} 41. Bg7 {[%clk 0:00:50]}  Bd4 {[%clk 0:00:27]} 42. Bh8 {[%clk 0:00:43]}  Bb2 {[%clk 0:00:27]} 43. Bg7 {[%clk 0:00:42]}  Bd4 {[%clk 0:00:26]} 44. Bh8 {[%clk 0:00:39]}  Bb2 {[%clk 0:00:26]} 45. Bg7 {[%clk 0:00:40]} 1/2-1/2


[Site "https://www.chess.com"]